bitfinex-derivatives/quotes_SOLF0:USTF0_20241010
["timestamp","ask_amount","ask_price","bid_price","bid_amount"]
[1728559438267,16.12,139.82,139.79,0.12502]
[1728559439167,3.5801,139.81,139.79,3.70542]
[1728559439567,11.04,139.8,139.79,0.12502]
[1728559440464,14.6202,139.8,139.79,0.12502]
[1728559445068,11.04,139.8,139.79,0.12502]
[1728559445776,3.5801,139.81,139.79,3.70552]
[1728559447769,11.04,139.82,139.79,3.70552]
[1728559447968,1.4046,139.83,139.79,0.12502]
[1728559448167,16.12,139.84,139.79,11.16502]
[1728559449474,3.5795,139.83,139.79,11.16502]
[1728559450471,3.5795,139.83,139.81,3.58]
[1728559459877,11.04,139.83,139.79,0.12502]
[1728559460077,3.5801,139.81,139.79,3.70542]
[1728559460572,14.6201,139.81,139.79,3.70542]
[1728559460780,14.6201,139.81,139.79,0.12502]
[1728559466092,14.6201,139.81,139.79,3.70542]
[1728559467494,19.6998,139.82,139.79,3.70542]
[1728559468995,3.5798,139.82,139.8,3.5802]
[1728559471795,3.5795,139.83,139.8,3.5802]
[1728559471993,3.5795,139.83,139.81,3.58]
[1728559473697,3.5798,139.82,139.8,3.5802]
[1728559474996,14.6198,139.82,139.8,3.5802]
[1728559476494,11.04,139.82,139.79,0.12502]
[1728559476700,3.5801,139.81,139.79,0.12502]
[1728559478802,14.6202,139.81,139.79,0.12502]
[1728559478997,11.04,139.81,139.79,0.12502]
[1728559479205,11.04,139.8,139.79,0.12502]
[1728559479396,14.6202,139.8,139.79,0.12502]
[1728559483905,3.5812,139.77,139.73,11.16502]
[1728559484109,11.04,139.79,139.74,11.04]
[1728559484809,3.5808,139.78,139.75,3.5813]
[1728559485207,3.5808,139.78,139.74,11.04]
[1728559486503,3.5808,139.78,139.76,3.5812]
[1728559489414,14.6207,139.79,139.74,11.04]
[1728559490506,14.6207,139.79,139.76,3.5811]
[1728559492513,3.5807,139.79,139.75,11.04]
[1728559492712,19.6804,139.8,139.77,3.5808]
[1728559493213,16.1,139.8,139.77,3.5808]
[1728559494415,3.5805,139.79,139.77,3.5808]
[1728559494812,14.6205,139.79,139.77,3.5808]
[1728559497624,14.6205,139.79,139.75,11.04]
[1728559497815,14.6205,139.79,139.76,3.5812]
[1728559499518,3.5808,139.78,139.75,3.5814]
[1728559499723,14.6208,139.78,139.75,3.5814]
[1728559500015,11.04,139.78,139.75,3.5814]
[1728559500414,3.5811,139.77,139.75,3.5814]
[1728559501517,8.6406,139.79,139.77,3.581]
[1728559501823,8.6406,139.79,139.75,11.04]
[1728559502016,8.6406,139.79,139.77,3.5809]
[1728559502925,3.5806,139.79,139.77,3.5809]
[1728559505627,3.5806,139.79,139.77,3.5809]
[1728559508717,1.4377,139.81,139.79,3.5803]
[1728559509124,1.4377,139.81,139.78,11.04]
[1728559509323,3.5802,139.8,139.78,3.5806]
[1728559511330,14.6202,139.8,139.77,3.5809]
[1728559511533,3.5805,139.79,139.77,3.5809]
[1728559512921,3.5808,139.78,139.76,96.6622942]
[1728559513426,11.04,139.79,139.76,96.6622942]
[1728559513833,11.04,139.78,139.76,96.6622942]
[1728559515435,3.581,139.77,139.76,93.0810942]
[1728559516435,14.6209,139.78,139.76,93.0810942]
[1728559517534,3.581,139.77,139.76,93.0810942]
[1728559518240,11.04,139.77,139.73,0.12502]
[1728559518433,16.1,139.77,139.73,0.12502]
[1728559519527,3.5814,139.76,139.73,3.70682]
[1728559520230,3.5814,139.76,139.73,0.12502]
[1728559520435,3.5814,139.76,139.74,3.5817]
[1728559522137,5.06,139.77,139.73,11.16502]
[1728559522326,5.06,139.77,139.76,3.5813]
[1728559523430,5.06,139.77,139.75,3.5814]
[1728559523632,8.641,139.77,139.75,3.5814]
[1728559531445,5.06,139.77,139.75,3.5814]
[1728559533039,8.641,139.77,139.75,3.5814]
[1728559541549,5.06,139.77,139.75,3.5814]
[1728559541747,5.06,139.77,139.74,11.04]
[1728559541955,5.06,139.77,139.76,3.5813]
[1728559542246,3.5808,139.78,139.76,3.5813]
[1728559543656,3.5808,139.78,139.73,0.12502]
[1728559543849,3.581,139.77,139.75,3.5814]
[1728559544452,14.621,139.77,139.75,3.5814]
[1728559544656,3.5813,139.76,139.74,3.5817]
[1728559545149,11.04,139.77,139.74,3.5817]
[1728559545548,3.5811,139.77,139.75,3.5815]
[1728559546861,14.6209,139.78,139.75,3.5815]
[1728559547156,14.6209,139.78,139.76,3.5812]
[1728559547450,1.4377,139.81,139.75,11.04]
[1728559547654,5.06,139.8,139.79,3.5805]
[1728559547856,12.4777,139.81,139.76,11.04]
[1728559548458,3.5804,139.8,139.77,3.5808]
[1728559551481,3.5804,139.8,139.78,3.5807]
[1728559552357,21.1179,139.81,139.78,3.5807]
[1728559554358,3.5803,139.8,139.78,3.5807]
[1728559554696,14.6203,139.8,139.78,3.5807]
[1728559555665,1.3891,139.82,139.77,11.04]
[1728559555965,5.06,139.81,139.79,3.5804]
[1728559557160,5.06,139.81,139.79,3.5803]
[1728559559471,5.06,139.81,139.8,3.5802]
[1728559561663,5.06,139.81,139.77,11.04]
[1728559561858,8.64,139.81,139.77,11.04]
[1728559562474,8.64,139.81,139.78,3.5805]
[1728559563572,8.64,139.81,139.79,3.5805]
[1728559571288,5.06,139.81,139.78,11.04]
[1728559571581,5.06,139.81,139.8,3.5802]
[1728559572173,67.64431256,139.83,139.78,11.04]
[1728559572476,1.4803,139.82,139.79,11.04]
[1728559573177,53.02471256,139.83,139.81,3.58]
[1728559573384,58.08471256,139.83,139.8,11.04]
[1728559573680,58.08471256,139.83,139.81,3.58]
[1728559574178,58.08471256,139.83,139.8,11.04]
[1728559574378,58.08471256,139.83,139.82,3.5797]
[1728559575379,6.4311,139.84,139.83,3.5795]
[1728559575582,1.3711,139.84,139.83,3.5795]
[1728559576187,0.12502,139.85,139.81,11.04]
[1728559576371,5.18502,139.85,139.81,11.04]
[1728559577184,5.18502,139.85,139.84,3.5792]
[1728559577587,0.12502,139.85,139.84,3.5792]
[1728559578082,0.12502,139.85,139.83,3.5793]
[1728559578383,0.12502,139.85,139.82,11.04]
[1728559579584,0.12502,139.85,139.84,3.5792]
[1728559584196,3.70412,139.85,139.82,3.5796]
[1728559584383,14.74412,139.85,139.82,3.5796]
[1728559591093,3.70412,139.85,139.82,3.5796]
[1728559591901,3.70412,139.85,139.81,11.04]
[1728559592101,3.70412,139.85,139.83,3.5793]
[1728559593103,0.12502,139.85,139.83,3.5793]
[1728559593302,0.12502,139.85,139.84,3.5792]
[1728559605303,0.12502,139.85,139.84,14.6192]
[1728559605705,0.12502,139.85,139.84,3.5792]
[1728559607310,0.12502,139.85,139.84,14.6192]
[1728559607704,410.94478,139.86,139.85,3.579]
[1728559607906,397.07848,139.86,139.85,14.619]
[1728559608107,331.74848,139.86,139.85,14.619]
[1728559608504,331.74848,139.86,139.85,18.20846975]
[1728559610512,331.61848,139.86,139.85,18.20846975]
[1728559611114,266.28848,139.86,139.85,18.20846975]
[1728559614809,266.28848,139.86,139.85,14.619]
[1728559627519,266.28848,139.86,139.85,3.579]
[1728559627721,266.28848,139.86,139.85,14.619]
[1728559630118,200.82848,139.86,139.85,14.619]
[1728559632121,200.82848,139.86,139.85,18.15899106]
[1728559632419,200.82848,139.86,139.85,14.619]
[1728559637026,200.82848,139.86,139.85,18.15817077]
[1728559637027,135.36848,139.86,139.85,18.15817077]
[1728559640021,69.90848,139.86,139.85,18.15817077]
[1728559642627,69.90848,139.86,139.85,7.11817077]
[1728559643019,4.44848,139.86,139.85,18.15817077]
[1728559645623,0.12502,139.91,139.85,18.15817077]
[1728559645624,0.12502,139.91,139.85,14.57917077]
[1728559645828,0.12502,139.91,139.9,14.6177]
[1728559650127,1.358,139.93,139.92,3.5772]
[1728559650323,1.358,139.93,139.92,14.6172]
[1728559651027,0.12502,139.97,139.92,11.04]
[1728559651331,0.12502,139.97,139.92,3.60075487]
[1728559651630,11.16502,139.97,139.91,5.04]
[1728559651834,11.16502,139.97,139.91,16.08]
[1728559651835,4.9541,139.96,139.91,16.08]
[1728559653331,1.3779,139.96,139.93,3.5768]
[1728559653727,1.3779,139.96,139.92,11.04]
[1728559653925,1.3779,139.96,139.92,14.6171]
[1728559654636,1.3779,139.96,139.93,11.04]
[1728559655130,1.3779,139.96,139.92,3.5771]
[1728559655321,4.9541,139.96,139.93,11.04]
[1728559656928,1.3779,139.96,139.93,14.6169]
[1728559657230,1.3779,139.96,139.93,11.04]
[1728559657534,4.9541,139.96,139.93,11.04]
[1728559659235,4.9541,139.96,139.93,14.6169]
[1728559660425,1.3779,139.96,139.94,11.04]
[1728559660630,1.3779,139.96,139.94,14.6166]
[1728559667438,1.3779,139.96,139.91,5.04]
[1728559667639,4.9541,139.96,139.93,14.6167]
[1728559668939,1.3779,139.96,139.91,5.04]
[1728559669139,1.3779,139.96,139.92,14.617]
[1728559669140,3.5766,139.95,139.92,14.617]
[1728559672547,6.4132,139.95,139.92,3.577]
[1728559673046,6.4132,139.95,139.92,14.617]
[1728559679244,2.8366,139.95,139.94,3.5767]
[1728559679743,2.8366,139.95,139.93,11.04]
[1728559680549,2.8366,139.95,139.93,14.6167]
[1728559684048,6.413,139.95,139.93,14.6167]
[1728559694349,6.413,139.95,139.89,5.04]
[1728559694551,6.413,139.95,139.92,3.577]
[1728559694751,2.8366,139.95,139.92,3.577]
[1728559694946,3.5767,139.94,139.92,3.577]
[1728559695258,2.8366,139.95,139.92,14.617]
[1728559695455,6.4131,139.95,139.92,14.617]
[1728559698453,3.70102,139.97,139.94,3.5765]
[1728559701059,3.70102,139.97,139.93,11.04]
[1728559701255,3.5763,139.96,139.93,3.5769]
[1728559701452,11.16502,139.97,139.87,93.68444819]
[1728559701654,11.04,139.95,139.88,5.04]
[1728559701849,11.04,139.95,139.9,14.6175]
[1728559702559,3.5769,139.94,139.9,14.6175]
[1728559702761,2.8831,139.96,139.88,11.04]
[1728559702956,5.04,139.95,139.91,11.04]
[1728559703263,8.6165,139.95,139.91,14.6173]
[1728559703659,3.5765,139.95,139.91,14.6173]
[1728559704461,3.5765,139.95,139.93,11.04]
[1728559705166,2.8831,139.96,139.93,11.04]
[1728559705359,6.4594,139.96,139.93,14.6168]
[1728559707463,6.4594,139.96,139.93,3.5768]
[1728559707664,3.5764,139.95,139.92,14.6171]
[1728559709669,6.4593,139.96,139.92,14.6171]
[1728559711766,6.4593,139.96,139.92,14.6171]
[1728559716377,8.74102,139.97,139.94,3.5766]
[1728559717066,5.16502,139.97,139.9,5.04]
[1728559717271,3.5764,139.96,139.92,14.617]
[1728559717475,3.5764,139.96,139.92,11.04]
[1728559717874,3.5764,139.96,139.93,3.5768]
[1728559725388,7.87482,139.97,139.92,11.04]
[1728559725583,3.5765,139.95,139.92,3.577]
[1728559727588,3.5765,139.95,139.92,14.617]
[1728559732390,3.5763,139.96,139.92,14.617]
[1728559734894,3.5763,139.96,139.92,3.577]
[1728559735195,3.5764,139.95,139.92,3.577]
[1728559735995,3.5764,139.95,139.92,14.617]
[1728559736588,11.04,139.95,139.87,93.68444819]
[1728559736792,16.08,139.94,139.87,93.68444819]
[1728559736990,11.04,139.93,139.89,11.04]
[1728559737190,11.04,139.93,139.87,93.68444819]
[1728559737489,3.5773,139.92,139.89,14.6178]
[1728559738889,3.5773,139.92,139.89,3.5778]
[1728559739091,3.5773,139.92,139.89,14.6178]
[1728559739488,3.5773,139.92,139.89,3.5778]
[1728559739794,3.5773,139.92,139.89,14.6178]
[1728559739990,3.5773,139.92,139.89,3.5778]
[1728559740192,3.5777,139.9,139.87,3.5782]
[1728559740398,16.08,139.91,139.86,11.04]
[1728559740896,19.6576,139.91,139.87,14.6182]
[1728559741292,19.6576,139.91,139.88,3.5782]
[1728559741991,8.6176,139.91,139.88,14.6182]
[1728559742485,5.04,139.91,139.89,14.6177]
[1728559742688,2.6373,139.92,139.9,11.04]
[1728559742992,5.04,139.93,139.91,11.04]
[1728559743192,5.04,139.94,139.92,11.04]
[1728559743392,5.04,139.95,139.92,11.04]
[1728559744395,8.6166,139.95,139.92,14.6171]
[1728559745697,8.6166,139.95,139.92,11.04]
[1728559745897,8.6166,139.95,139.93,3.5769]
[1728559746093,3.5766,139.95,139.93,3.5769]
[1728559746396,8.6166,139.95,139.93,3.5769]
[1728559749198,5.04,139.95,139.94,3.5767]
[1728559751294,16.20502,139.97,139.95,3.5762]
[1728559752601,16.20502,139.97,139.96,3.5762]
[1728559753192,16.20502,139.97,139.95,3.5763]
[1728559753908,16.20502,139.97,139.93,11.04]
[1728559754109,19.78102,139.97,139.93,11.04]
[1728559754308,11.04,139.96,139.92,11.04]
[1728559754606,14.6163,139.96,139.93,3.5768]
[1728559755097,14.6163,139.96,139.92,11.04]
[1728559755302,14.6163,139.96,139.94,3.5766]
[1728559755898,11.04,139.96,139.92,11.04]
[1728559756100,14.6163,139.96,139.92,11.04]
[1728559756301,11.04,139.96,139.92,11.04]
[1728559756903,11.04,139.96,139.94,3.5765]
[1728559757307,19.78112,139.97,139.94,3.5765]
[1728559757901,8.74112,139.97,139.94,3.5765]
[1728559758101,19.78112,139.97,139.94,3.5765]
[1728559758610,11.04,139.96,139.94,3.5765]
[1728559758902,14.6162,139.96,139.93,3.5768]
[1728559760113,3.5766,139.95,139.92,3.5771]
[1728559760306,3.5766,139.95,139.9,11.04]
[1728559760307,11.04,139.95,139.9,11.04]
[1728559760708,3.5768,139.94,139.91,3.5772]
[1728559762514,11.04,139.95,139.9,11.04]
[1728559762712,14.6165,139.95,139.92,3.5772]
[1728559764114,3.5765,139.95,139.92,3.5772]
[1728559764708,3.5767,139.94,139.92,3.5772]
[1728559766709,3.5767,139.94,139.92,3.5772]
[1728559767013,3.5767,139.94,139.91,11.04]
[1728559767211,3.5767,139.94,139.91,14.6173]
[1728559768415,3.5767,139.94,139.91,3.5773]
[1728559768713,3.5767,139.94,139.91,14.6173]
[1728559769123,3.5767,139.94,139.92,3.5772]
[1728559774127,5.04,139.95,139.91,11.04]
[1728559774521,5.04,139.95,139.92,11.04]
[1728559775216,5.04,139.95,139.93,3.5769]
[1728559775417,8.6164,139.95,139.93,3.5769]
[1728559778420,16.08,139.95,139.92,3.577]
[1728559779028,3.5767,139.94,139.92,3.577]
[1728559782130,16.08,139.95,139.92,3.577]
[1728559782425,19.6566,139.95,139.92,3.577]
[1728559782730,8.6166,139.95,139.93,3.5768]
[1728559782920,19.6566,139.95,139.93,3.5768]
[1728559783316,19.6566,139.95,139.92,3.577]
[1728559784529,5.04,139.95,139.91,11.04]
[1728559785130,8.6165,139.95,139.92,3.577]
[1728559787636,5.04,139.95,139.92,3.577]
[1728559787934,3.5768,139.94,139.91,3.5773]
[1728559790435,16.08,139.95,139.9,11.04]
[1728559790740,11.04,139.91,139.86,11.04]
[1728559790938,11.04,139.9,139.86,11.04]
[1728559791133,3.5781,139.89,139.85,11.16502]
[1728559792233,3.5781,139.89,139.86,3.5785]
[1728559793537,3.5781,139.89,139.86,14.6185]
[1728559795439,11.04,139.9,139.86,14.6185]
[1728559795641,14.6178,139.9,139.86,14.6185]
[1728559796540,14.6178,139.9,139.87,3.5784]
[1728559797250,3.578,139.89,139.86,14.6185]
[1728559797938,14.6178,139.9,139.87,3.5784]
[1728559800649,14.6178,139.9,139.86,11.04]
[1728559801051,14.6176,139.91,139.87,11.04]
[1728559801438,5.04,139.92,139.87,11.04]
[1728559801645,8.6172,139.92,139.87,11.04]
[1728559802143,3.5774,139.91,139.88,3.5781]
[1728559802350,5.04,139.92,139.87,11.04]
[1728559802950,8.6172,139.92,139.89,3.5778]
[1728559804259,8.6172,139.92,139.87,11.04]
[1728559804260,5.04,139.92,139.87,11.04]
[1728559804961,3.5773,139.92,139.89,3.5778]
[1728559808665,14.6173,139.92,139.89,3.5778]
[1728559810361,11.04,139.92,139.89,3.5778]
[1728559810663,3.5775,139.91,139.89,3.5778]
[1728559810961,11.04,139.92,139.89,3.5778]
[1728559811163,14.6173,139.92,139.89,3.5778]
[1728559811554,3.5775,139.91,139.89,3.5778]
[1728559812164,8.617,139.93,139.9,3.5775]
[1728559812361,3.577,139.93,139.89,11.04]
[1728559812862,3.577,139.93,139.9,3.5776]
[1728559813056,3.577,139.93,139.89,11.04]
[1728559813458,3.577,139.93,139.91,3.5774]
[1728559816464,6.3138,139.94,139.9,11.04]
[1728559816674,13.777,139.94,139.9,11.04]
[1728559818358,3.577,139.93,139.91,3.5773]
[1728559821970,11.04,139.96,139.91,11.04]
[1728559822668,3.5766,139.95,139.92,3.577]
[1728559823067,3.5766,139.95,139.92,14.617]
[1728559823765,3.5766,139.95,139.93,3.5769]
[1728559824165,3.5766,139.95,139.92,11.04]
[1728559824568,3.5766,139.95,139.92,14.617]
[1728559825773,3.5766,139.95,139.93,3.5769]
[1728559827271,3.5766,139.95,139.92,14.6171]
[1728559829675,12.56402,139.97,139.92,3.5771]
[1728559829982,3.5767,139.94,139.92,3.5771]
[1728559833876,3.5767,139.94,139.91,11.04]
[1728559834070,3.5767,139.94,139.91,14.6173]
[1728559834880,3.5771,139.93,139.89,3.5777]
[1728559835074,11.04,139.94,139.89,16.08]
[1728559835278,11.04,139.95,139.9,11.04]
[1728559835576,3.5768,139.94,139.9,14.6175]
[1728559835771,11.04,139.95,139.9,14.6175]
[1728559836177,3.5768,139.94,139.9,14.6175]
[1728559837380,3.5768,139.94,139.91,11.04]
[1728559839371,14.6166,139.95,139.91,14.6172]
[1728559840375,3.5766,139.95,139.91,14.6172]
[1728559841183,2.7147,139.96,139.93,11.04]
[1728559841478,1.52402,139.97,139.94,11.04]
[1728559841479,0.12502,139.97,139.94,11.04]
[1728559842279,3.5763,139.96,139.94,14.6166]
[1728559842471,0.12502,139.97,139.94,14.6166]
[1728559843171,3.70102,139.97,139.94,14.6166]
[1728559847285,0.12502,139.97,139.94,11.04]
[1728559847486,0.12502,139.97,139.95,14.6164]
[1728559848989,0.12502,139.97,139.96,3.5762]
[1728559849590,0.12502,139.97,139.96,14.6162]
[1728559855289,0.12502,140.03,139.96,11.04]
[1728559855488,0.12502,140.03,140.02,3.5746]
[1728559855687,0.12502,140.03,140.02,14.6146]
[1728559855886,0.12502,140.03,140.0,5.04]
[1728559855887,0.12502,140.03,140.0,16.08]
[1728559856188,0.12502,140.03,139.98,5.04]
[1728559856383,11.16502,140.03,139.98,5.04]
[1728559856596,11.16502,140.03,139.99,11.04]
[1728559857102,14.6146,140.02,139.97,16.08]
[1728559857993,14.6146,140.02,139.98,3.5755]
[1728559858292,3.5746,140.02,139.98,3.5755]
[1728559858494,3.5746,140.02,139.98,11.04]
[1728559858696,6.42642,140.03,139.99,11.04]
[1728559859996,6.42642,140.03,140.01,3.5747]
[1728559859997,2.85192,140.03,140.01,3.5747]
[1728559860706,14.6148,140.02,139.99,3.5754]
[1728559860892,11.04,140.02,139.98,11.04]
[1728559861093,3.575,140.01,139.98,14.6156]
[1728559861288,11.04,140.02,139.97,5.04]
[1728559861494,11.04,140.0,139.95,16.08]
[1728559861903,3.5755,139.99,139.96,3.5761]
[1728559862091,3.5755,139.99,139.96,14.6161]
[1728559862293,20.25202,140.03,139.98,11.04]
[1728559862490,3.5746,140.02,139.95,8.6577446]
[1728559862714,3.5746,140.02,139.99,11.04]
[1728559863499,3.5746,140.02,139.99,14.6153]
[1728559864497,20.25202,140.03,140.0,3.575]
[1728559864903,20.25202,140.03,139.99,11.04]
[1728559865201,3.5747,140.02,139.99,14.6153]
[1728559865795,7.74652,140.03,140.01,14.6149]
[1728559866297,7.74652,140.03,140.01,11.04]
[1728559867902,4.17202,140.03,139.99,11.04]
[1728559868096,3.5749,140.02,139.99,11.04]
[1728559868598,3.5749,140.02,139.99,14.6153]
[1728559869206,3.5749,140.02,140.0,3.5751]
[1728559870605,3.5749,140.02,140.01,11.04]
[1728559871002,7.74642,140.03,140.01,14.6147]
[1728559871194,7.74642,140.03,140.01,11.04]
[1728559871905,3.5746,140.02,140.01,11.04]
[1728559873910,4.17202,140.03,139.99,3.5753]
[1728559874111,4.17202,140.03,139.99,11.04]
[1728559874608,3.5749,140.01,139.98,11.04]
[1728559875212,3.5749,140.01,139.98,14.6154]
[1728559876101,15.21202,140.03,139.99,11.04]
[1728559876306,3.5747,140.02,139.99,14.6152]
[1728559876505,15.21202,140.03,139.99,14.6152]
[1728559876506,4.17202,140.03,139.99,11.04]
[1728559877609,3.5747,140.02,139.99,14.6152]
[1728559877808,3.5747,140.02,139.99,11.04]
[1728559878009,4.17202,140.03,140.0,11.04]
[1728559878710,7.74652,140.03,140.0,14.615]
[1728559880714,4.17202,140.03,140.0,14.615]
[1728559881013,3.5746,140.02,140.0,14.615]
[1728559881215,4.17202,140.03,140.0,14.615]
[1728559881408,7.74652,140.03,140.0,14.615]
[1728559883215,0.12502,140.03,140.0,11.04]
[1728559883417,3.5747,140.02,139.99,11.04]
[1728559884007,3.5747,140.02,139.99,14.6152]
[1728559885914,3.575,140.01,139.98,3.5755]
[1728559886111,2.82712,140.03,139.98,14.6155]
[1728559886112,13.86712,140.03,139.98,14.6155]
[1728559886310,13.86712,140.03,139.93,92.04959734]
[1728559886311,16.06,140.02,139.97,11.04]
[1728559886511,3.5754,139.99,139.96,3.576]
[1728559886707,3.5754,139.99,139.96,14.616]
[1728559887511,3.5754,139.99,139.93,100.63111373]
[1728559887512,11.04,140.0,139.93,100.63111373]
[1728559887712,11.04,140.0,139.96,11.04]
[1728559887918,11.04,140.01,139.96,11.04]
[1728559888119,3.5753,140.0,139.95,3.5763]
[1728559888316,3.5753,140.0,139.96,11.04]
[1728559889024,3.5753,140.0,139.96,14.616]
[1728559889927,11.04,140.01,139.96,3.576]
[1728559890121,3.5753,140.0,139.97,11.04]
[1728559891216,6.3358,140.02,139.98,11.04]
[1728559891421,3.5749,140.01,139.98,11.04]
[1728559891922,3.5749,140.01,139.98,14.6155]
[1728559892327,6.3358,140.02,139.99,11.04]
[1728559892526,1.3158,140.02,140.0,11.04]
[1728559892818,7.84712,140.03,140.01,11.04]
[1728559893012,7.84712,140.03,140.02,3.5746]
[1728559893216,7.84712,140.03,140.01,11.04]
[1728559893527,2.82712,140.03,140.01,11.04]
[1728559893721,2.82712,140.03,140.01,14.6146]
[1728559893920,2.82712,140.03,140.01,11.04]
[1728559894123,0.12502,140.03,140.01,11.04]
[1728559894323,0.12502,140.03,140.02,14.6146]
[1728559902725,0.12502,140.03,140.02,19.6346]
[1728559903520,2.7066,140.08,140.02,16.06]
[1728559903825,2.7066,140.08,140.07,11.04]
[1728559904126,0.12502,140.09,140.07,14.6133]
[1728559904423,0.12502,140.09,140.08,11.04]
[1728559905128,0.12502,140.09,140.08,14.6131]
[1728559905331,0.12502,140.09,140.08,11.04]
[1728559906327,0.12502,140.09,140.07,3.5731]
[1728559906528,0.12502,140.09,140.08,11.04]
[1728559907233,0.12502,140.09,140.08,14.6131]
[1728559908132,0.12502,140.09,140.07,3.5732]
[1728559908330,0.12502,140.09,140.02,5.02]
[1728559908520,0.12502,140.09,140.07,11.04]
[1728559908728,11.16502,140.09,140.01,96.38775449]
[1728559909034,11.04,140.06,140.02,16.06]
[1728559909927,14.6137,140.06,140.03,3.5743]
[1728559913932,3.5737,140.06,140.03,3.5743]
[1728559915838,3.5737,140.06,140.03,14.6143]
[1728559920441,3.5737,140.06,140.04,11.04]
[1728559920642,3.5734,140.07,140.04,11.04]
[1728559921246,3.5734,140.07,140.04,14.614]
[1728559922842,0.12502,140.09,140.07,3.5733]
[1728559923033,0.12502,140.09,140.08,11.04]
[1728559923241,2.654,140.13,140.08,11.04]
[1728559923554,2.654,140.13,140.12,11.04]
[1728559923751,0.12502,140.15,140.12,11.04]
[1728559923936,0.12502,140.15,140.08,3.52200503]
[1728559924251,0.12502,140.15,140.06,7.1468]
[1728559924546,0.12502,140.15,140.03,0.12502]
[1728559924547,11.16502,140.15,140.04,5.02]
[1728559924850,11.04,140.14,140.04,5.02]
[1728559925141,16.06,140.13,140.08,11.04]
[1728559925840,11.04,140.12,140.04,5.02]
[1728559926046,15.2756,140.12,140.07,11.04]
[1728559926234,15.2756,140.12,140.04,5.02]
[1728559926436,15.2756,140.12,140.07,11.04]
[1728559926638,3.5727,140.1,140.07,11.04]
[1728559928036,15.2756,140.12,140.07,11.04]
[1728559928242,3.573,140.09,140.06,11.04]
[1728559928645,3.5727,140.1,140.06,14.6135]
[1728559929042,3.5727,140.1,140.08,11.04]
[1728559930652,3.5725,140.11,140.08,14.6131]
[1728559930851,0.12502,140.15,140.04,5.02]
[1728559931052,11.04,140.14,140.09,11.04]
[1728559931253,3.572,140.13,140.09,14.6128]
[1728559931452,3.572,140.13,140.09,11.04]
[1728559931753,11.04,140.14,140.09,11.04]
[1728559931946,14.6116,140.14,140.1,3.5724]
[1728559932149,11.04,140.14,140.1,3.5724]
[1728559932846,11.04,140.14,140.09,11.04]
[1728559933046,11.04,140.14,140.11,3.5723]
[1728559933451,5.14502,140.15,140.1,14.6124]
[1728559933452,0.12502,140.15,140.1,14.6124]
[1728559933751,0.12502,140.15,140.1,11.04]
[1728559933752,16.18502,140.15,140.1,11.04]
[1728559934152,19.75642,140.15,140.12,3.5719]
[1728559934963,19.75642,140.15,140.1,11.04]
[1728559934964,16.18502,140.15,140.11,11.04]
[1728559935354,5.14502,140.15,140.12,3.5719]